[Event "*** SCC Grand Prix: Titled Tuesday Blitz"]
[Site "Chess.com"]
[Date "2020.07.21"]
[Round "3"]
[White "AnthonyWirig"]
[Black "ajian"]
[Result "1-0"]
[WhiteElo "2705"]
[BlackElo "2419"]
[TimeControl "180+1"]
[EndTime "10:28:23 PDT"]
[Termination "AnthonyWirig won by resignation"]

1. d4 {[%clk 0:03:00.9]} 1... Nf6 {[%clk 0:02:59.8]} 2. Nf3 {[%clk 0:02:58.7]}
2... e6 {[%clk 0:02:59.9]} 3. g3 {[%clk 0:02:58.4]} 3... d5 {[%clk 0:02:58.2]}
4. Bg2 {[%clk 0:02:58.2]} 4... b5 {[%clk 0:02:57]} 5. O-O {[%clk 0:02:57.3]}
5... Bb7 {[%clk 0:02:57.1]} 6. Qd3 {[%clk 0:02:52.5]} 6... a6 {[%clk 0:02:51.5]}
7. Nbd2 {[%clk 0:02:49.1]} 7... Nbd7 {[%clk 0:02:48.9]} 8. a4 {[%clk 0:02:39.2]}
8... c5 {[%clk 0:02:45.8]} 9. c3 {[%clk 0:02:36.5]} 9... Qb6 {[%clk 0:02:25.7]}
10. h3 {[%clk 0:02:07]} 10... Be7 {[%clk 0:02:19.7]} 11. Kh2 {[%clk 0:02:03.8]}
11... O-O {[%clk 0:02:18.8]} 12. Ne5 {[%clk 0:01:53.1]} 12... Rfd8 {[%clk
0:01:58]} 13. f4 {[%clk 0:01:44.6]} 13... c4 {[%clk 0:01:44.7]} 14. Qc2 {[%clk
0:01:27.1]} 14... b4 {[%clk 0:01:44.6]} 15. g4 {[%clk 0:01:13.2]} 15... Ne8
{[%clk 0:01:31.3]} 16. e4 {[%clk 0:01:01.8]} 16... f6 {[%clk 0:00:54.3]} 17.
Nxd7 {[%clk 0:00:57.7]} 17... Rxd7 {[%clk 0:00:55.2]} 18. e5 {[%clk 0:00:57.6]}
18... fxe5 {[%clk 0:00:36.7]} 19. fxe5 {[%clk 0:00:56.2]} 19... g6 {[%clk
0:00:34.2]} 20. Nf3 {[%clk 0:00:44.1]} 20... Ng7 {[%clk 0:00:34]} 21. Bh6 {[%clk
0:00:32.5]} 21... Qc7 {[%clk 0:00:20.8]} 22. Rf2 {[%clk 0:00:29.3]} 22... Rf8
{[%clk 0:00:12.5]} 23. Raf1 {[%clk 0:00:28.9]} 23... Qb8 {[%clk 0:00:10.6]} 24.
Ng5 {[%clk 0:00:25.6]} 24... Bxg5 {[%clk 0:00:06.6]} 25. Rxf8+ {[%clk
0:00:23.3]} 25... Qxf8 {[%clk 0:00:07]} 26. Rxf8+ {[%clk 0:00:23.2]} 26... Kxf8
{[%clk 0:00:07.9]} 27. Bxg5 {[%clk 0:00:23.5]} 27... b3 {[%clk 0:00:07.6]} 28.
Qf2+ {[%clk 0:00:22.3]} 28... Rf7 {[%clk 0:00:08.5]} 29. Bf6 {[%clk 0:00:21.6]}
29... Ne8 {[%clk 0:00:08.9]} 30. g5 {[%clk 0:00:22]} 30... Bc6 {[%clk
0:00:08.5]} 31. h4 {[%clk 0:00:21.2]} 31... Bxa4 {[%clk 0:00:08.3]} 32. Bh3
{[%clk 0:00:21.1]} 32... Bd7 {[%clk 0:00:08.5]} 33. Qe1 {[%clk 0:00:21.2]} 33...
a5 {[%clk 0:00:07.9]} 34. Qa1 {[%clk 0:00:21.7]} 34... a4 {[%clk 0:00:08.2]} 35.
Qa3+ {[%clk 0:00:21.5]} 35... Kg8 {[%clk 0:00:08]} 36. Bg4 {[%clk 0:00:20.8]}
36... Nc7 {[%clk 0:00:06]} 37. Qb4 {[%clk 0:00:17.8]} 37... Ne8 {[%clk
0:00:03.5]} 38. Kg3 {[%clk 0:00:16.9]} 38... Nc7 {[%clk 0:00:03.6]} 39. Qb8+
{[%clk 0:00:16.6]} 39... Ne8 {[%clk 0:00:02.4]} 40. Qa8 {[%clk 0:00:16.2]} 40...
Kf8 {[%clk 0:00:01.9]} 41. h5 {[%clk 0:00:16.1]} 41... Kg8 {[%clk 0:00:02.4]}
42. hxg6 {[%clk 0:00:16.3]} 42... hxg6 {[%clk 0:00:03.3]} 43. Qa6 {[%clk
0:00:14.2]} 43... Nc7 {[%clk 0:00:02.7]} 44. Qb6 {[%clk 0:00:14]} 44... Bc8
{[%clk 0:00:03]} 45. Qb8 {[%clk 0:00:12.9]} 45... Rf8 {[%clk 0:00:01.5]} 46. Be7
{[%clk 0:00:12.3]} 46... Rf7 {[%clk 0:00:02.4]} 47. Qxc8+ {[%clk 0:00:11.9]}
47... Kg7 {[%clk 0:00:03.1]} 48. Qxc7 {[%clk 0:00:11.9]} 48... Rf6 {[%clk
0:00:04]} 49. Bxf6+ {[%clk 0:00:12.1]} 1-0

[Event "*** SCC Grand Prix: Titled Tuesday Blitz"]
[Site "Chess.com"]
[Date "2020.07.21"]
[Round "3"]
[White "Batsai"]
[Black "Fh2411"]
[Result "0-1"]
[WhiteElo "2362"]
[BlackElo "2586"]
[TimeControl "180+1"]
[EndTime "10:28:26 PDT"]
[Termination "Fh2411 won by resignation"]

1. d4 {[%clk 0:03:00.9]} 1... d5 {[%clk 0:01:53.9]} 2. c4 {[%clk 0:02:59.3]}
2... c6 {[%clk 0:01:54.8]} 3. Nc3 {[%clk 0:02:58.2]} 3... Nf6 {[%clk 0:01:54.5]}
4. Nf3 {[%clk 0:02:59.1]} 4... dxc4 {[%clk 0:01:53.9]} 5. a4 {[%clk 0:02:58.4]}
5... Bf5 {[%clk 0:01:53.9]} 6. e3 {[%clk 0:02:58.3]} 6... e6 {[%clk 0:01:54]} 7.
Bxc4 {[%clk 0:02:57.4]} 7... Bb4 {[%clk 0:01:54.4]} 8. O-O {[%clk 0:02:57.5]}
8... Nbd7 {[%clk 0:01:55]} 9. Qe2 {[%clk 0:02:56.6]} 9... Bg6 {[%clk 0:01:53.5]}
10. Rd1 {[%clk 0:02:54.3]} 10... O-O {[%clk 0:01:53.1]} 11. Bb3 {[%clk
0:02:44.8]} 11... a5 {[%clk 0:01:48.5]} 12. Nh4 {[%clk 0:02:42.5]} 12... Bh5
{[%clk 0:01:44.3]} 13. Nf3 {[%clk 0:02:42.2]} 13... Qe7 {[%clk 0:01:25.5]} 14.
e4 {[%clk 0:02:41.9]} 14... e5 {[%clk 0:01:25.8]} 15. Bg5 {[%clk 0:02:28.9]}
15... exd4 {[%clk 0:01:18.4]} 16. Rxd4 {[%clk 0:02:29.8]} 16... Ne5 {[%clk
0:01:15.6]} 17. Rad1 {[%clk 0:02:07]} 17... Bc5 {[%clk 0:01:04.8]} 18. R4d2
{[%clk 0:02:02.4]} 18... Nxf3+ {[%clk 0:00:50.2]} 19. gxf3 {[%clk 0:02:03.3]}
19... Qe5 {[%clk 0:00:50.6]} 20. Bh4 {[%clk 0:01:52.7]} 20... Qf4 {[%clk
0:00:50.4]} 21. Bg3 {[%clk 0:01:42.5]} 21... Qxf3 {[%clk 0:00:50.5]} 22. Qxf3
{[%clk 0:01:43.4]} 22... Bxf3 {[%clk 0:00:50.8]} 23. Re1 {[%clk 0:01:43.8]}
23... Rfe8 {[%clk 0:00:43.2]} 24. e5 {[%clk 0:01:35.9]} 24... Nh5 {[%clk
0:00:39.7]} 25. Rd7 {[%clk 0:01:34.4]} 25... Re7 {[%clk 0:00:36.5]} 26. e6
{[%clk 0:01:28.6]} 26... fxe6 {[%clk 0:00:23.7]} 27. Rxe6 {[%clk 0:01:28.1]}
27... Rxe6 {[%clk 0:00:17.4]} 28. Bxe6+ {[%clk 0:01:29]} 28... Kh8 {[%clk
0:00:18.2]} 29. Rxb7 {[%clk 0:01:18.3]} 29... Nxg3 {[%clk 0:00:18.2]} 30. hxg3
{[%clk 0:01:18.2]} 30... Re8 {[%clk 0:00:18.1]} 31. Bc4 {[%clk 0:00:47.4]} 31...
h5 {[%clk 0:00:17]} 32. Rf7 {[%clk 0:00:41.5]} 32... Re1+ {[%clk 0:00:15.9]} 33.
Bf1 {[%clk 0:00:41.7]} 33... Bg4 {[%clk 0:00:16.2]} 34. Kg2 {[%clk 0:00:34.6]}
34... Rc1 {[%clk 0:00:13.8]} 35. Be2 {[%clk 0:00:33.7]} 35... Bxe2 {[%clk
0:00:12.5]} 36. Nxe2 {[%clk 0:00:34.6]} 36... Rc2 {[%clk 0:00:13.1]} 37. Nf4
{[%clk 0:00:32.9]} 37... Rxf2+ {[%clk 0:00:13.5]} 38. Kh3 {[%clk 0:00:33.2]}
38... Kg8 {[%clk 0:00:10.6]} 39. Rf5 {[%clk 0:00:32.6]} 39... Bd6 {[%clk
0:00:09.3]} 40. Rxh5 {[%clk 0:00:28.5]} 40... Bxf4 {[%clk 0:00:09.5]} 41. gxf4
{[%clk 0:00:29.4]} 41... Rxf4 {[%clk 0:00:10]} 42. Rxa5 {[%clk 0:00:30.2]} 42...
Rb4 {[%clk 0:00:10.9]} 43. Ra8+ {[%clk 0:00:28.9]} 43... Kh7 {[%clk 0:00:11.5]}
44. Ra6 {[%clk 0:00:28.8]} 44... Rxb2 {[%clk 0:00:11.4]} 45. Rxc6 {[%clk
0:00:28.4]} 45... Rb3+ {[%clk 0:00:12.3]} 46. Kg2 {[%clk 0:00:27.8]} 46... Ra3
{[%clk 0:00:12.3]} 47. Rc4 {[%clk 0:00:27.8]} 47... Kh6 {[%clk 0:00:11.9]} 48.
Kf2 {[%clk 0:00:27.5]} 48... g5 {[%clk 0:00:12.4]} 49. Ke2 {[%clk 0:00:26.5]}
49... Kh5 {[%clk 0:00:13.3]} 50. Kf2 {[%clk 0:00:26.7]} 50... g4 {[%clk
0:00:13.3]} 51. Kg2 {[%clk 0:00:26.6]} 51... Kh4 {[%clk 0:00:13.8]} 52. Rc2
{[%clk 0:00:25.5]} 52... Rxa4 {[%clk 0:00:13.8]} 53. Kg1 {[%clk 0:00:25.6]}
53... Ra3 {[%clk 0:00:13.6]} 54. Rc1 {[%clk 0:00:25.7]} 54... Kh3 {[%clk
0:00:13.9]} 55. Ra1 {[%clk 0:00:26.2]} 55... Rxa1+ {[%clk 0:00:13.2]} 0-1

[Event "*** SCC Grand Prix: Titled Tuesday Blitz"]
[Site "Chess.com"]
[Date "2020.07.21"]
[Round "3"]
[White "doons21"]
[Black "if_name_main_a"]
[Result "1-0"]
[WhiteElo "2645"]
[BlackElo "2404"]
[TimeControl "180+1"]
[EndTime "10:28:30 PDT"]
[Termination "doons21 won by checkmate"]

1. c4 {[%clk 0:02:59.8]} 1... c5 {[%clk 0:02:58.8]} 2. g3 {[%clk 0:02:58.2]}
2... Nc6 {[%clk 0:02:59]} 3. Bg2 {[%clk 0:02:58.6]} 3... g6 {[%clk 0:02:59.4]}
4. Nc3 {[%clk 0:02:52]} 4... Bg7 {[%clk 0:02:59.7]} 5. e4 {[%clk 0:02:52.6]}
5... e6 {[%clk 0:02:59]} 6. Nge2 {[%clk 0:02:52.8]} 6... Nge7 {[%clk 0:02:59.4]}
7. O-O {[%clk 0:02:52.7]} 7... O-O {[%clk 0:02:59.6]} 8. d3 {[%clk 0:02:51.6]}
8... d6 {[%clk 0:02:57.5]} 9. Rb1 {[%clk 0:02:51]} 9... a6 {[%clk 0:02:57]} 10.
a3 {[%clk 0:02:50.3]} 10... Rb8 {[%clk 0:02:57.4]} 11. Be3 {[%clk 0:02:45.2]}
11... b5 {[%clk 0:02:56.4]} 12. cxb5 {[%clk 0:02:45]} 12... axb5 {[%clk
0:02:57.3]} 13. d4 {[%clk 0:02:45.5]} 13... c4 {[%clk 0:02:52.6]} 14. b4 {[%clk
0:02:20.9]} 14... d5 {[%clk 0:02:42.3]} 15. e5 {[%clk 0:02:15.8]} 15... Ra8
{[%clk 0:02:40.7]} 16. Nxb5 {[%clk 0:02:06.8]} 16... Qb6 {[%clk 0:02:38.3]} 17.
a4 {[%clk 0:01:52.9]} 17... f6 {[%clk 0:02:35.5]} 18. exf6 {[%clk 0:01:40.5]}
18... Bxf6 {[%clk 0:02:36.4]} 19. Nec3 {[%clk 0:01:36.9]} 19... Nf5 {[%clk
0:02:28]} 20. Ne2 {[%clk 0:01:18.3]} 20... Bd7 {[%clk 0:02:09.6]} 21. g4 {[%clk
0:00:50.7]} 21... Nxe3 {[%clk 0:02:05.1]} 22. fxe3 {[%clk 0:00:50.3]} 22... Be7
{[%clk 0:01:56]} 23. Qd2 {[%clk 0:00:48.2]} 23... Rxa4 {[%clk 0:01:51]} 24. Nbc3
{[%clk 0:00:45.4]} 24... Rxb4 {[%clk 0:01:47.7]} 25. Rxf8+ {[%clk 0:00:45.6]}
25... Bxf8 {[%clk 0:01:48]} 26. Rf1 {[%clk 0:00:45.7]} 26... Rb2 {[%clk
0:01:45.6]} 27. Qe1 {[%clk 0:00:46]} 27... Qd8 {[%clk 0:01:37.9]} 28. Qf2 {[%clk
0:00:43.6]} 28... Qe7 {[%clk 0:01:37]} 29. Bxd5 {[%clk 0:00:37.2]} 29... Rxe2
{[%clk 0:01:01.8]} 30. Qxe2 {[%clk 0:00:34.7]} 30... exd5 {[%clk 0:01:00.1]} 31.
Nxd5 {[%clk 0:00:35.6]} 31... Qe6 {[%clk 0:00:50.7]} 32. Nf6+ {[%clk 0:00:30.3]}
32... Kg7 {[%clk 0:00:48.9]} 33. d5 {[%clk 0:00:24]} 33... Nd4 {[%clk
0:00:42.4]} 34. Qf2 {[%clk 0:00:17.6]} 34... Qd6 {[%clk 0:00:12.1]} 35. exd4
{[%clk 0:00:12.8]} 35... Bc8 {[%clk 0:00:08.1]} 36. Nh5+ {[%clk 0:00:12.3]}
36... gxh5 {[%clk 0:00:07.4]} 37. Qf7+ {[%clk 0:00:12.6]} 37... Kh6 {[%clk
0:00:07.2]} 38. Rf6+ {[%clk 0:00:13.2]} 38... Kg5 {[%clk 0:00:06.9]} 39. Rxd6
{[%clk 0:00:12.4]} 39... Bxd6 {[%clk 0:00:07.4]} 40. Qg8+ {[%clk 0:00:12.9]}
40... Kf4 {[%clk 0:00:07.4]} 41. Qxc8 {[%clk 0:00:13.4]} 41... hxg4 {[%clk
0:00:05.6]} 42. Qxc4 {[%clk 0:00:13.7]} 42... Ke4 {[%clk 0:00:05.8]} 43. Kg2
{[%clk 0:00:13.8]} 43... h5 {[%clk 0:00:05.6]} 44. h3 {[%clk 0:00:13.6]} 44...
gxh3+ {[%clk 0:00:05]} 45. Kxh3 {[%clk 0:00:14.5]} 45... Ke3 {[%clk 0:00:04.1]}
46. Kh4 {[%clk 0:00:14.6]} 46... Ke4 {[%clk 0:00:03.3]} 47. Kxh5 {[%clk
0:00:15]} 47... Ke3 {[%clk 0:00:04.2]} 48. Kg6 {[%clk 0:00:14.6]} 48... Ke4
{[%clk 0:00:05.1]} 49. Kf6 {[%clk 0:00:14.9]} 49... Ke3 {[%clk 0:00:06]} 50. Ke6
{[%clk 0:00:15.8]} 50... Ke4 {[%clk 0:00:06.9]} 51. Kxd6 {[%clk 0:00:15.9]}
51... Kf3 {[%clk 0:00:07.8]} 52. Ke5 {[%clk 0:00:16]} 52... Kg2 {[%clk
0:00:08.7]} 53. d6 {[%clk 0:00:16.9]} 53... Kh1 {[%clk 0:00:09.6]} 54. d7 {[%clk
0:00:17.6]} 54... Kg1 {[%clk 0:00:10.5]} 55. Qe2 {[%clk 0:00:17.4]} 55... Kh1
{[%clk 0:00:11.4]} 56. d8=Q {[%clk 0:00:17.7]} 56... Kg1 {[%clk 0:00:12.3]} 57.
Qg5+ {[%clk 0:00:17.8]} 57... Kh1 {[%clk 0:00:13.2]} 58. Qgg2# {[%clk
0:00:17.9]} 1-0

[Event "*** SCC Grand Prix: Titled Tuesday Blitz"]
[Site "Chess.com"]
[Date "2020.07.21"]
[Round "3"]
[White "TheCount"]
[Black "ErikRonka"]
[Result "0-1"]
[WhiteElo "2661"]
[BlackElo "2377"]
[TimeControl "180+1"]
[EndTime "10:28:31 PDT"]
[Termination "ErikRonka won on time"]

1. d4 {[%clk 0:03:00.9]} 1... d5 {[%clk 0:02:58]} 2. c4 {[%clk 0:03:01]} 2... c6
{[%clk 0:02:57.7]} 3. cxd5 {[%clk 0:02:59.6]} 3... cxd5 {[%clk 0:02:57.9]} 4.
Bf4 {[%clk 0:03:00]} 4... Nc6 {[%clk 0:02:57.7]} 5. e3 {[%clk 0:02:59.3]} 5...
Bf5 {[%clk 0:02:57.4]} 6. Nc3 {[%clk 0:02:59.3]} 6... Nf6 {[%clk 0:02:54.1]} 7.
Qb3 {[%clk 0:02:57]} 7... Na5 {[%clk 0:02:53.8]} 8. Qa4+ {[%clk 0:02:57.3]} 8...
Bd7 {[%clk 0:02:53.7]} 9. Qc2 {[%clk 0:02:57.6]} 9... e6 {[%clk 0:02:46.1]} 10.
Nf3 {[%clk 0:02:51.8]} 10... Nh5 {[%clk 0:02:40.8]} 11. Be5 {[%clk 0:02:51]}
11... f6 {[%clk 0:02:37.9]} 12. Bg3 {[%clk 0:02:47.4]} 12... Rc8 {[%clk
0:02:06.7]} 13. Bd3 {[%clk 0:02:36]} 13... Nxg3 {[%clk 0:02:06.6]} 14. hxg3
{[%clk 0:02:31.8]} 14... f5 {[%clk 0:02:06.8]} 15. g4 {[%clk 0:02:28.4]} 15...
g6 {[%clk 0:01:37.2]} 16. Ne5 {[%clk 0:02:24.5]} 16... Bg7 {[%clk 0:01:23.8]}
17. Qe2 {[%clk 0:02:00.6]} 17... Bxe5 {[%clk 0:01:06.5]} 18. dxe5 {[%clk
0:02:00.6]} 18... Nc4 {[%clk 0:00:49.6]} 19. gxf5 {[%clk 0:01:52.4]} 19... exf5
{[%clk 0:00:39.5]} 20. Bxc4 {[%clk 0:01:43.2]} 20... Rxc4 {[%clk 0:00:37.8]} 21.
Rd1 {[%clk 0:01:14.6]} 21... Be6 {[%clk 0:00:25.7]} 22. Rd4 {[%clk 0:00:46.3]}
22... Qa5 {[%clk 0:00:20.6]} 23. Rhh4 {[%clk 0:00:37.7]} 23... O-O {[%clk
0:00:18.9]} 24. Qd2 {[%clk 0:00:30.1]} 24... Qc7 {[%clk 0:00:17.9]} 25. Rxc4
{[%clk 0:00:27.9]} 25... dxc4 {[%clk 0:00:17.3]} 26. Qd4 {[%clk 0:00:27.5]}
26... Rd8 {[%clk 0:00:16.4]} 27. Qxa7 {[%clk 0:00:25.4]} 27... Qxe5 {[%clk
0:00:10.5]} 28. Qxb7 {[%clk 0:00:25.7]} 28... Rb8 {[%clk 0:00:10]} 29. Qxh7+
{[%clk 0:00:24.8]} 29... Kf8 {[%clk 0:00:09.1]} 30. Qh8+ {[%clk 0:00:18.4]}
30... Qxh8 {[%clk 0:00:09.1]} 31. Rxh8+ {[%clk 0:00:19.3]} 31... Bg8 {[%clk
0:00:09.7]} 32. Nd1 {[%clk 0:00:18.5]} 32... Kg7 {[%clk 0:00:08.9]} 33. Rh4
{[%clk 0:00:18.8]} 33... c3 {[%clk 0:00:06.9]} 34. bxc3 {[%clk 0:00:16.2]} 34...
Bxa2 {[%clk 0:00:06.7]} 35. Ra4 {[%clk 0:00:14.7]} 35... Bb3 {[%clk 0:00:06.6]}
36. Rb4 {[%clk 0:00:15.3]} 36... Rxb4 {[%clk 0:00:03.8]} 37. cxb4 {[%clk
0:00:16.2]} 37... Kf6 {[%clk 0:00:04.7]} 38. Kd2 {[%clk 0:00:15.6]} 38... Ke5
{[%clk 0:00:04.9]} 39. Nb2 {[%clk 0:00:13.5]} 39... Bd5 {[%clk 0:00:04.9]} 40.
g3 {[%clk 0:00:10.5]} 40... Ke4 {[%clk 0:00:05]} 41. Kc3 {[%clk 0:00:09.1]}
41... Kf3 {[%clk 0:00:04.7]} 42. Nd3 {[%clk 0:00:09.7]} 42... g5 {[%clk
0:00:02.6]} 43. b5 {[%clk 0:00:09.7]} 43... Ke4 {[%clk 0:00:02.4]} 44. b6 {[%clk
0:00:08.4]} 44... Kf3 {[%clk 0:00:02.6]} 45. Kd4 {[%clk 0:00:07.9]} 45... Be4
{[%clk 0:00:02.8]} 46. Ke5 {[%clk 0:00:06]} 46... Ba8 {[%clk 0:00:03.1]} 47. Kd6
{[%clk 0:00:05.6]} 47... Ke2 {[%clk 0:00:04]} 0-1

[Event "*** SCC Grand Prix: Titled Tuesday Blitz"]
[Site "Chess.com"]
[Date "2020.07.21"]
[Round "3"]
[White "DishonorOnYourCow"]
[Black "Larina_Marija"]
[Result "0-1"]
[WhiteElo "2315"]
[BlackElo "2119"]
[TimeControl "180+1"]
[EndTime "10:28:33 PDT"]
[Termination "Larina_Marija won by resignation"]

1. d4 {[%clk 0:03:00.9]} 1... f5 {[%clk 0:02:59.6]} 2. c4 {[%clk 0:02:58.3]}
2... Nf6 {[%clk 0:02:59.6]} 3. g3 {[%clk 0:02:57.8]} 3... g6 {[%clk 0:02:59.5]}
4. Bg2 {[%clk 0:02:58.3]} 4... Bg7 {[%clk 0:02:59.6]} 5. Nh3 {[%clk 0:02:58.1]}
5... d6 {[%clk 0:02:58.7]} 6. O-O {[%clk 0:02:56.7]} 6... O-O {[%clk 0:02:58.5]}
7. d5 {[%clk 0:02:56.4]} 7... Na6 {[%clk 0:02:48.7]} 8. Nf4 {[%clk 0:02:53.5]}
8... Nc5 {[%clk 0:02:48.2]} 9. Nc3 {[%clk 0:02:38.1]} 9... g5 {[%clk 0:02:46]}
10. Nd3 {[%clk 0:02:36.4]} 10... Nxd3 {[%clk 0:02:45.3]} 11. Qxd3 {[%clk
0:02:37.3]} 11... Qe8 {[%clk 0:02:11.6]} 12. e4 {[%clk 0:02:18.9]} 12... Qg6
{[%clk 0:02:00.1]} 13. exf5 {[%clk 0:01:28.9]} 13... Bxf5 {[%clk 0:01:59.5]} 14.
Qd2 {[%clk 0:01:28.4]} 14... g4 {[%clk 0:01:51]} 15. Qg5 {[%clk 0:01:16.6]}
15... Qxg5 {[%clk 0:01:26]} 16. Bxg5 {[%clk 0:01:17.5]} 16... h6 {[%clk
0:01:21.9]} 17. Be3 {[%clk 0:01:14.6]} 17... Bd3 {[%clk 0:01:20.8]} 18. Rfe1
{[%clk 0:01:11.4]} 18... Bxc4 {[%clk 0:01:20.4]} 19. Bd4 {[%clk 0:01:08.5]}
19... Rae8 {[%clk 0:01:17.3]} 20. b3 {[%clk 0:01:02.2]} 20... Bd3 {[%clk
0:01:16.2]} 21. Rad1 {[%clk 0:01:00.1]} 21... Bf5 {[%clk 0:01:15.2]} 22. Nb5
{[%clk 0:00:55.6]} 22... Rf7 {[%clk 0:00:40.2]} 23. Nxc7 {[%clk 0:00:52.6]}
23... Rc8 {[%clk 0:00:40.3]} 24. Rc1 {[%clk 0:00:49.7]} 24... e5 {[%clk
0:00:35.7]} 25. dxe6 {[%clk 0:00:18.6]} 25... Rfxc7 {[%clk 0:00:34.9]} 26. Rxc7
{[%clk 0:00:17.9]} 26... Rxc7 {[%clk 0:00:35.8]} 27. e7 {[%clk 0:00:18.7]} 27...
Ne8 {[%clk 0:00:34.1]} 28. Bd5+ {[%clk 0:00:17.2]} 28... Kh7 {[%clk 0:00:33.8]}
29. Bf7 {[%clk 0:00:14.3]} 29... Bxd4 {[%clk 0:00:29.1]} 30. Bxe8 {[%clk
0:00:14.5]} 30... Bf6 {[%clk 0:00:28.8]} 31. Bd7 {[%clk 0:00:12.4]} 31... Bxd7
{[%clk 0:00:25.8]} 32. e8=Q {[%clk 0:00:12]} 32... Bxe8 {[%clk 0:00:25.8]} 33.
Rxe8 {[%clk 0:00:12.9]} 33... Rc1+ {[%clk 0:00:26]} 34. Kg2 {[%clk 0:00:13.4]}
34... Rc2 {[%clk 0:00:25.3]} 35. Re6 {[%clk 0:00:13.4]} 35... Bd4 {[%clk
0:00:25.2]} 36. Rxd6 {[%clk 0:00:07.4]} 36... Rxf2+ {[%clk 0:00:25.3]} 37. Kg1
{[%clk 0:00:07.8]} 37... Rd2+ {[%clk 0:00:19.1]} 38. Kf1 {[%clk 0:00:07.3]}
38... Be3 {[%clk 0:00:17.9]} 39. Re6 {[%clk 0:00:06.7]} 39... Bc5 {[%clk
0:00:16.4]} 40. Re5 {[%clk 0:00:06.1]} 40... Bd6 {[%clk 0:00:15]} 41. Re6 {[%clk
0:00:05.5]} 41... Bc5 {[%clk 0:00:14.6]} 42. Re5 {[%clk 0:00:05.3]} 42... b6
{[%clk 0:00:14.7]} 43. Rf5 {[%clk 0:00:04.8]} 43... Rxa2 {[%clk 0:00:14]} 44.
Rf4 {[%clk 0:00:03.3]} 44... h5 {[%clk 0:00:13.9]} 45. Rf5 {[%clk 0:00:03.2]}
45... Kg6 {[%clk 0:00:13.4]} 46. Rd5 {[%clk 0:00:03.2]} 46... Rxh2 {[%clk
0:00:13.2]} 47. Rd7 {[%clk 0:00:03]} 47... a5 {[%clk 0:00:12.5]} 48. Rb7 {[%clk
0:00:02.4]} 48... Rb2 {[%clk 0:00:11.7]} 49. Ra7 {[%clk 0:00:02.8]} 49... Rxb3
{[%clk 0:00:11.6]} 50. Ke2 {[%clk 0:00:03.1]} 50... Rxg3 {[%clk 0:00:11.7]} 0-1

[Event "*** SCC Grand Prix: Titled Tuesday Blitz"]
[Site "Chess.com"]
[Date "2020.07.21"]
[Round "3"]
[White "bsnsun"]
[Black "Roman_Ovetchkin"]
[Result "0-1"]
[WhiteElo "2381"]
[BlackElo "2602"]
[TimeControl "180+1"]
[EndTime "10:28:36 PDT"]
[Termination "Roman_Ovetchkin won by resignation"]

1. d4 {[%clk 0:03:00.6]} 1... Nf6 {[%clk 0:02:57.5]} 2. c4 {[%clk 0:02:58.6]}
2... g6 {[%clk 0:02:57.6]} 3. Nc3 {[%clk 0:02:57.4]} 3... Bg7 {[%clk 0:02:57.7]}
4. g3 {[%clk 0:02:57.8]} 4... O-O {[%clk 0:02:57.1]} 5. Bg2 {[%clk 0:02:58.1]}
5... d6 {[%clk 0:02:56.5]} 6. Nf3 {[%clk 0:02:58.2]} 6... Nbd7 {[%clk 0:02:56]}
7. O-O {[%clk 0:02:58]} 7... e5 {[%clk 0:02:56.2]} 8. e4 {[%clk 0:02:57.2]} 8...
exd4 {[%clk 0:02:50.5]} 9. Nxd4 {[%clk 0:02:57.4]} 9... Re8 {[%clk 0:02:50.8]}
10. h3 {[%clk 0:02:57.6]} 10... Nc5 {[%clk 0:02:50.9]} 11. Re1 {[%clk
0:02:57.6]} 11... a5 {[%clk 0:02:49.9]} 12. Qc2 {[%clk 0:02:53.7]} 12... a4
{[%clk 0:02:29.2]} 13. Be3 {[%clk 0:02:52.4]} 13... c6 {[%clk 0:02:29]} 14. Rad1
{[%clk 0:02:51.9]} 14... Qa5 {[%clk 0:02:25.4]} 15. Bf4 {[%clk 0:02:33.2]} 15...
Bf8 {[%clk 0:01:52.5]} 16. Bd2 {[%clk 0:02:02.7]} 16... Qa6 {[%clk 0:01:40.4]}
17. Bf1 {[%clk 0:02:00.4]} 17... Qb6 {[%clk 0:01:35.9]} 18. Kh2 {[%clk 0:01:56]}
18... h5 {[%clk 0:01:21.4]} 19. Bg2 {[%clk 0:01:55.4]} 19... Ncd7 {[%clk
0:00:55.5]} 20. Be3 {[%clk 0:01:46.3]} 20... Qb4 {[%clk 0:00:54.4]} 21. b3
{[%clk 0:01:08.6]} 21... axb3 {[%clk 0:00:52.5]} 22. axb3 {[%clk 0:01:09.1]}
22... Nc5 {[%clk 0:00:52.6]} 23. Bd2 {[%clk 0:01:05.6]} 23... Qb6 {[%clk
0:00:50.2]} 24. Bg5 {[%clk 0:00:58.4]} 24... Nfd7 {[%clk 0:00:28.5]} 25. Bd2
{[%clk 0:00:57]} 25... Bg7 {[%clk 0:00:27.7]} 26. Nce2 {[%clk 0:00:47.7]} 26...
Ne5 {[%clk 0:00:16.8]} 27. b4 {[%clk 0:00:47.1]} 27... Ne6 {[%clk 0:00:16.7]}
28. Nb3 {[%clk 0:00:45]} 28... Qc7 {[%clk 0:00:13.6]} 29. Be3 {[%clk 0:00:44.8]}
29... h4 {[%clk 0:00:10]} 30. g4 {[%clk 0:00:44.1]} 30... d5 {[%clk 0:00:09.3]}
31. Bf4 {[%clk 0:00:31.7]} 31... Nxf4 {[%clk 0:00:08.9]} 32. Kg1 {[%clk
0:00:18.2]} 32... Nxe2+ {[%clk 0:00:08.1]} 33. Rxe2 {[%clk 0:00:17.8]} 33...
dxc4 {[%clk 0:00:09]} 34. Nc5 {[%clk 0:00:16.4]} 34... b5 {[%clk 0:00:08.9]} 35.
f4 {[%clk 0:00:15.7]} 35... Nd7 {[%clk 0:00:09]} 36. e5 {[%clk 0:00:12.6]} 36...
Nxc5 {[%clk 0:00:08.7]} 37. bxc5 {[%clk 0:00:13.3]} 37... Qa7 {[%clk 0:00:09.1]}
38. Red2 {[%clk 0:00:09.7]} 38... Qxc5+ {[%clk 0:00:09.4]} 39. Kh2 {[%clk
0:00:10.3]} 39... Be6 {[%clk 0:00:09.3]} 40. Rd4 {[%clk 0:00:08.6]} 40... Ra3
{[%clk 0:00:08.3]} 41. Kh1 {[%clk 0:00:08]} 41... g5 {[%clk 0:00:07.3]} 42. f5
{[%clk 0:00:06.6]} 42... Bd5 {[%clk 0:00:07.5]} 43. f6 {[%clk 0:00:04.2]} 43...
Bh6 {[%clk 0:00:06.1]} 44. Bxd5 {[%clk 0:00:03.9]} 44... cxd5 {[%clk 0:00:06.2]}
45. Qd2 {[%clk 0:00:04.7]} 45... Rxh3+ {[%clk 0:00:05]} 46. Kg2 {[%clk
0:00:04.4]} 46... Rd3 {[%clk 0:00:05.6]} 47. Kh2 {[%clk 0:00:05.1]} 47... Rxd2+
{[%clk 0:00:05.5]} 48. R1xd2 {[%clk 0:00:05.1]} 48... Rxe5 {[%clk 0:00:05.7]}
0-1